Cogmind - Beta 16.1 @@@ ROGUE MODE // 2026.03.27 @ 12:40:10 Player: Ez Result: Destroyed by 8R-AWN with 8R-AWN's Boregun Performance ------------- Evolutions (1) 500 Regions Visited (4) 800 Robots Destroyed (40) 200 Value Destroyed (957) 957 Prototype IDs (23) 460 Alien Tech Used (0) 0 Bonus (300) 300 TOTAL SCORE: 3217 Bonus ------- Aligned with FarCom 300 Cogmind --------- Core Integrity 0/400 Matter 300/300 Energy 84/100 System Corruption 0% Temperature Cool (20) Movement Core (400) Ox7 Location -9/Exiles Parts ------- > --- POWER (1) -------- (None) > --- PROPULSION (4) --- (None) > --- UTILITY (2) ------ Improved Heat Sink Large Storage Unit > --- WEAPON (2) ------- Longsword +1 > --- INVENTORY (15) --- Light Ion Engine Structural Scanner Light Armor Plating Hacking Suite Beam Rifle Particle Gun Spread Laser Grenade Launcher Mini Grenade Launcher Axe Axe Axe Peak State ------------ > --- POWER ------------ Ion Engine > --- PROPULSION ------- Aluminum Leg Improved Aluminum Leg Carbon-fiber Leg > --- UTILITY ---------- Improved Heat Sink Large Storage Unit > --- WEAPON ----------- Field Lobotomy Kit Longsword +1 > --- INVENTORY -------- Light Ion Engine Aluminum Leg Structural Scanner Light Armor Plating Hacking Suite Beam Rifle Particle Gun Spread Laser Grenade Launcher Mini Grenade Launcher Axe Axe Axe [Rating: 31] Favorites ----------- Power Light Ion Engine Engine Light Ion Engine Power Core Light Nuclear Core Propulsion Carbon-fiber Leg Treads Light Treads Leg Carbon-fiber Leg Utility Small Storage Unit Device Improved Heat Sink Storage Small Storage Unit Protection Core Shielding Weapon Assault Rifle Energy Gun Spread Laser Ballistic Gun Assault Rifle Special Weapon Field Lobotomy Kit Slashing Weapon Axe Build | -11 -10 -9 -9 -9 ------- Run | Yrd Mat Mat Min Exi Slots Evolved 2 | . . 2 . . Power . | . . . . . Propulsion 2 | . . 2 . . Utility . | . . . . . Weapon . | . . . . . Parts Attached 34 | 6 6 18 1 3 Power 7 | 1 2 3 1 . Engine 6 | 1 1 3 1 . Core 1 | . 1 . . . Reactor . | . . . . . Propulsion 13 | 2 2 8 . 1 Treads 2 | 2 . . . . Leg 11 | . 2 8 . 1 Wheel . | . . . . . Hover . | . . . . . Flight . | . . . . . Utility 5 | 1 1 3 . . Device 2 | . . 2 . . Storage 2 | 1 . 1 . . Processor . | . . . . . Hackware . | . . . . . Protection 1 | . 1 . . . Artifact . | . . . . . Weapon 9 | 2 1 4 . 2 Energy Gun 3 | . . 3 . . Energy Cannon . | . . . . . Ballistic Gun 3 | 2 1 . . . Ballistic Cannon . | . . . . . Launcher . | . . . . . Special Weapon 1 | . . . . 1 Impact Weapon . | . . . . . Slashing Weapon 2 | . . 1 . 1 Piercing Weapon . | . . . . . Special Melee Weapon . | . . . . . Unidentified Prototypes . | . . . . . Parts Lost 19 | . 4 8 1 6 Power 4 | . 1 2 . 1 Propulsion 11 | . 1 5 1 4 Utility . | . . . . . Weapon 4 | . 2 1 . 1 Highest Loss Streak 6 | . 2 3 1 6 To Critical Strikes 5 | . . . . 5 Average Backups 6 | . 3 7 10 11 Power . | . . . . 1 Propulsion . | . . 1 1 . Utility 1 | . 1 2 3 3 Weapon 3 | . . 3 6 6 Tool/Special . | . . . . . Unused Backups 9 | . 1 2 . 6 Power 2 | . 1 1 . . Propulsion . | . . . . . Utility 3 | . . 1 . 2 Weapon 4 | . . . . 4 Tool/Special . | . . . . . Average Slot Usage (%) 88 | . 82 93 91 86 Engine 9 | . 10 9 11 10 Treads 8 | . 23 . . . Leg 26 | . 1 40 36 32 Device 6 | . . 9 11 11 Storage 12 | . 14 11 11 11 Protection 2 | . 6 1 . . Energy Gun 3 | . . 4 11 7 Ballistic Gun 11 | . 24 6 . . Slashing Weapon 6 | . . 10 11 11 Peak Build Rating 31 | 6 10 21 20 31 Average Rating 14 | 4 6 18 18 22 On Entrance 10 | . 6 6 20 18 Avg Prop Armor Cover (%) . | . . . . . Naked Turns . | . . . . . Heaviest Build 37 | 12 15 33 32 37 Greatest Support 55 | 40 40 55 53 38 Greatest Overweight (x) 2 | . . . . 2 Average Overweight (x) . | . . . . . Largest Inventory Capacity 15 | 8 8 15 15 15 Average Capacity 11 | 7 8 12 15 15 Most Carried 13 | . 8 10 11 13 Average Carried 6 | . 3 7 10 11 Final Capacity 15 | 8 8 15 15 15 Final Carried 12 | . 7 10 11 12 Class Distribution -------------------- 82% | Mutant 17% | Scavenger-Mutant Dominant Class ---------------- Mutant | -10/Materials Mutant | -9/Materials Mutant | -9/Mines Mutant | -9/Exiles Resources | -11 -10 -9 -9 -9 ----------- Run | Yrd Mat Mat Min Exi Matter Collected 884 | 185 321 363 10 5 Remotely . | . . . . . Salvage Created 1403 | . 629 700 55 19 Parts 87 | . 40 45 2 . Haulers Intercepted . | . . . . . Recyclers Shooed 1 | . . 1 . . Parts Field Recycled . | . . . . . Retrieved Matter . | . . . . . Parts Self-Destructed . | . . . . . Prevented . | . . . . . Parts Restored . | . . . . . Kills | -11 -10 -9 -9 -9 ------- Run | Yrd Mat Mat Min Exi Combat Hostiles Destroyed 30 | . 11 16 2 1 Melee 6 | . . 5 . 1 Guns 23 | . 10 11 2 . AOE 1 | . 1 . . . Classes Destroyed 9 | . 6 2 . 1 Worker 2 | . 2 . . . Builder 4 | . 3 1 . . Recycler 2 | . 1 1 . . Operator 1 | . . 1 . . Watcher 2 | . 1 1 . . Swarmer 9 | . 3 6 . . Grunt 17 | . 8 7 2 . Sentry 3 | . . 3 . . Assembled 1 | . . . . 1 Best Kill Streak 5 | . 5 4 2 1 Combat Bots Only 4 | . 4 3 2 1 Max Kills in Single Turn 2 | . 2 1 1 1 Gunslinging . | . . . . . Exploded 1 | . 1 . . . Melee 1 | . . 1 . 1 Uniques/NPCs Destroyed . | . . . . . Combat | -11 -10 -9 -9 -9 -------- Run | Yrd Mat Mat Min Exi Hostile Shots Fired 336 | . 72 183 14 67 Missed 107 | . 19 68 2 18 Hits 229 | . 53 115 12 49 Melee 1 | . . . . 1 Projectile 228 | . 53 115 12 48 Critical Strikes 18 | . 2 3 . 13 Part Disruptions 1 | . . . . 1 Damage Taken 2795 | . 736 1191 155 713 Core 518 | . 118 217 . 183 Absorbed by Shields . | . . . . . Redirected to Shielding 24 | . 24 . . . Core Remaining (%) 76 | 100 52 . . . Volleys Fired 141 | . 56 72 11 2 Largest 2 | . 2 1 1 1 Hottest 65 | . 40 65 65 . Shots Fired 162 | . 77 72 11 2 Gun 160 | . 77 72 11 . Cannon . | . . . . . Launcher . | . . . . . Special 2 | . . . . 2 Kinetic 133 | . 77 56 . . Thermal 27 | . . 16 11 . Explosive . | . . . . . Electromagnetic . | . . . . . Robot Hit Streak 12 | . 10 9 12 4 Robot Miss Streak 4 | . 3 3 4 . Penetration Max . | . . . . . Secondary Targets . | . . . . . Shots Hit Robots 133 | . 51 66 11 5 Core Hits 65 | . 27 26 12 . Critical Kills 1 | . 1 . . . Critical Parts Destroyed . | . . . . . Critical Strikes 2 | . 1 1 . . Destroy 1 | . 1 . . . Sever 1 | . . 1 . . Melee Attacks 55 | . . 52 . 3 Impact . | . . . . . Slashing 55 | . . 52 . 3 Piercing . | . . . . . Sneak Attacks 4 | . . 4 . . Combat Hostiles . | . . . . . Follow-up Attacks . | . . . . . Damage Inflicted 2534 | . 798 1400 176 160 Guns 1455 | . 658 621 176 . Cannons . | . . . . . Explosions 140 | . 140 . . . Melee 939 | . . 779 . 160 Ramming . | . . . . . Kinetic 1105 | . 658 447 . . Thermal 389 | . 39 174 176 . Explosive . | . . . . . Electromagnetic 101 | . 101 . . . Impact . | . . . . . Slashing 939 | . . 779 . 160 Piercing . | . . . . . Highest Corruption . | . . . . . Average Corruption . | . . . . . Corruption Purged . | . . . . . Corruption Blocked . | . . . . . Overload Shots . | . . . . . Overflow Damage 169 | . 2 130 . 37 Projectiles . | . . . . . Explosions 2 | . 2 . . . Melee 167 | . . 130 . 37 Knockbacks . | . . . . . Impact . | . . . . . Kinetic . | . . . . . Secondary . | . . . . . Self-Inflicted Damage 52 | . 52 . . . Shots 2 | . 2 . . . Rammed . | . . . . . Targets Rammed . | . . . . . Kicked . | . . . . . Crushed . | . . . . . Highest Temperature 20 | . 20 16 4 . Average Temperature 5 | . 5 7 2 . Received Heat Transfer 1048 | . 393 408 87 160 Siege Activations . | . . . . . Martial Activations . | . . . . . Shielding Activations . | . . . . . Robots Disrupted . | . . . . . Combat Hostiles . | . . . . . Robots Corrupted . | . . . . . Combat Hostiles . | . . . . . Parts Fried . | . . . . . Impact Corruptions . | . . . . . Robots Melted . | . . . . . Combat Hostiles . | . . . . . Parts Melted 1 | . . 1 . . Heat Transferred 659 | . . 444 215 . Parts Sabotaged . | . . . . . Parts Stolen . | . . . . . Parts Stripped . | . . . . . Power Chain Reactions 1 | . 1 . . . Alert | -11 -10 -9 -9 -9 ------- Run | Yrd Mat Mat Min Exi Maximum Alert Level 1 | . 1 . . . Low Security (%) 98 | 100 97 100 100 . Level 1 1 | . 2 . . . Level 2 . | . . . . . Level 3 . | . . . . . Level 4 . | . . . . . Level 5 . | . . . . . High Security . | . . . . . Max Security . | . . . . . Peak Influence 206 | . 206 176 78 . Initial 81 | . . 81 48 . Average 68 | . 52 84 62 . Influence Increases 1053 | . 392 611 50 . Destroy 0b10 Robot/C 580 | . 220 320 40 . Destroy 0b10 Robot/NC 55 | . 35 20 . . Destroy Leader 154 | . 62 82 10 . Successful Hack 9 | . 9 . . . Disable Machine 30 | . 30 . . . Destroy Structure 30 | . 6 24 . . Lose Combat Pursuer 195 | . 30 165 . . Influence Decreases 1053 | . 198 681 106 68 Entered New Map 257 | . . 113 76 68 Time Decay 666 | . 158 488 20 . Lost Part 130 | . 40 80 10 . Squads Dispatched 6 | . 3 3 . . Investigation 4 | . 3 1 . . Extermination . | . . . . . Reinforcement 2 | . . 2 . . Assault . | . . . . . Garrison . | . . . . . Intercept . | . . . . . Searches Triggered . | . . . . . Construction Impeded . | . . . . . Haulers Reinforced . | . . . . . Active Scanning Responses . | . . . . . Cargo Convoy Interrupts . | . . . . . Stealth | -11 -10 -9 -9 -9 --------- Run | Yrd Mat Mat Min Exi Distress Signals 5 | . 1 4 . . Communications Jammed . | . . . . . Distress Signals . | . . . . . Times Spotted 71 | . 18 43 2 8 Peak Tracking Total 11 | . 3 11 2 9 Tactical Retreats 7 | . 2 5 . . Traps | -11 -10 -9 -9 -9 ------- Run | Yrd Mat Mat Min Exi Traps Triggered 1 | . 1 . . . Indirectly . | . . . . . Trap Hack Attempts . | . . . . . Triggered . | . . . . . Disarmed . | . . . . . Reprogrammed . | . . . . . Reused . | . . . . . Traps Extracted . | . . . . . Installed . | . . . . . Triggered . | . . . . . Machines | -11 -10 -9 -9 -9 ---------- Run | Yrd Mat Mat Min Exi Machines Disabled 2 | . 2 . . . Max in Single Turn 2 | . 2 . . . Machines Repaired . | . . . . . Machines Dismantled . | . . . . . Machines Sabotaged . | . . . . . Overloaded Fab Kills . | . . . . . Hacking | -11 -10 -9 -9 -9 --------- Run | Yrd Mat Mat Min Exi Machines Accessed 9 | . 3 3 . 3 Terminals 5 | . 2 3 . . Fabricators . | . . . . . Repair Stations . | . . . . . Recycling Units 1 | . 1 . . . Scanalyzers . | . . . . . Garrison Access . | . . . . . Total Hacks 24 | . 7 6 . 11 Successful 13 | . 2 . . 11 Failed 11 | . 5 6 . . Catastrophic 4 | . 1 3 . . Database Lockouts . | . . . . . Manual 11 | . 4 6 . 1 Terminals 10 | . 4 6 . . Fabricators . | . . . . . Repair Stations . | . . . . . Recycling Units 3 | . 3 . . . Scanalyzers . | . . . . . Garrison Access . | . . . . . Terminal Hacks 12 | . 1 . . 11 Record 10 | . . . . 10 Level Access Points 1 | . 1 . . . Proto ID Catalog 1 | . . . . 1 Fabricator Hacks . | . . . . . Repair Station Hacks . | . . . . . Recycling Unit Hacks 1 | . 1 . . . Report Inventory 1 | . 1 . . . Scanalyzer . | . . . . . Garrison Access Hacks . | . . . . . Unauthorized Hacks . | . . . . . Terminals . | . . . . . Fabricators . | . . . . . Repair Stations . | . . . . . Recycling Units . | . . . . . Scanalyzers . | . . . . . Garrison Access . | . . . . . Data Cores Recovered . | . . . . . Used . | . . . . . Hacking Detections 4 | . 2 2 . . Full Trace Events 3 | . 2 1 . . Feedback Events . | . . . . . Feedback Blocked . | . . . . . Robot Schematics Acquired . | . . . . . Robots Built . | . . . . . Authchips . | . . . . . Time . | . . . . . Total Robot Build Rating . | . . . . . Part Schematics Acquired . | . . . . . Parts Built . | . . . . . Authchips . | . . . . . Time . | . . . . . Total Part Build Rating . | . . . . . Part Studies Acquired . | . . . . . Parts Repaired . | . . . . . Time . | . . . . . Parts Recycled . | . . . . . Recycled Matter . | . . . . . Retrieved Matter . | . . . . . Retrieved Components . | . . . . . Parts Scanalyzed . | . . . . . Part Schematics Acquired . | . . . . . Parts Damaged . | . . . . . Bothacking | -11 -10 -9 -9 -9 ------------ Run | Yrd Mat Mat Min Exi Used RIF Installer . | . . . . . Robots Hacked . | . . . . . Non-combat . | . . . . . Combat . | . . . . . Robot Hacks Applied . | . . . . . Relay Couplers Released . | . . . . . Fabnet Peak Effective % . | . . . . . Robots Rewired . | . . . . . Allies Hacked . | . . . . . Hacks Repelled . | . . . . . Allies | -11 -10 -9 -9 -9 -------- Run | Yrd Mat Mat Min Exi Total Allies 1 | . . . . 1 Largest Group 1 | . . . . 1 Highest-Rated Group 9 | . . . . 9 Highest-Rated Ally 9 | . . . . 9 Total Orders . | . . . . . Ally Attacks . | . . . . . Total Damage . | . . . . . Kills . | . . . . . Allies Corrupted . | . . . . . Allies Melted . | . . . . . Field Lobotomies 1 | . . . . 1 Intel | -11 -10 -9 -9 -9 ------- Run | Yrd Mat Mat Min Exi Active Infowar (turns) 237 | . . 237 . . Structural 237 | . . 237 . . Robot Analysis Total . | . . . . . Derelict Logs Recovered . | . . . . . Drone Launches . | . . . . . Drone Recoveries . | . . . . . Exploration | -11 -10 -9 -9 -9 ------------- Run | Yrd Mat Mat Min Exi Turns Passed 3358 | 99 1132 1669 59 399 Spaces Moved 1752 | 59 410 940 29 314 Core 3 | 3 . . . . Treads 433 | 56 377 . . . Legs 1316 | . 33 940 29 314 Wheels . | . . . . . Hover . | . . . . . Flight . | . . . . . Fastest Speed 50 | 50 120 120 120 120 Average Speed 130 | 154 156 120 120 121 Slowest Speed 260 | 160 160 120 120 260 Overloaded Moves . | . . . . . Propulsion Burnouts . | . . . . . Robots Hopped . | . . . . . Potential Cave-ins 3 | . . 2 . 1 Cave-ins Triggered . | . . . . . Exploration Rate (%) 30 | 4 50 51 3 44 Regions Visited 4 Branch Regions 2 Pre-discovered Areas . | . . . . . Known Exits Taken 1 | . 1 . . . Unknown Exits Taken 3 | 1 . 1 1 . Scrap Searched . | . . . . . Spaces Dug 29 | . . 29 . . Terrain Destroyed 34 | . 5 29 . . Melee 29 | . . 29 . . Projectile . | . . . . . AOE 5 | . 5 . . . Terrain Rammed . | . . . . . Walls Destroyed . | . . . . . Machines Disabled . | . . . . . Actions | -11 -10 -9 -9 -9 --------- Run | Yrd Mat Mat Min Exi Total 2570 | 64 822 1318 41 325 Wait 552 | . 340 210 1 1 Move 1748 | 58 409 939 28 314 Hop . | . . . . . Pick Up 21 | . 9 11 . 1 Fast Attach 18 | 6 2 10 . . Attach 11 | . 3 6 . 2 Detach 4 | . 1 2 . 1 Swap 8 | . 1 5 1 1 Drop 12 | . 1 11 . . Fire 141 | . 56 72 11 2 Melee 55 | . . 52 . 3 Ram . | . . . . . Kick . | . . . . . Crush . | . . . . . Escape Stasis . | . . . . . Rewire . | . . . . . Trap . | . . . . . Miscellaneous . | . . . . . Route ------- -11/Scrapyard -10/Materials (discovered 5 exits: *Mat x3 / [*Min] / [*Sub]) -9/Materials (discovered 2 exits: [*Mat] / [*Min]) -9/Mines -9/Exiles History --------- Turn | Location | Event 2 | -11/Scrapyard | Met Revision 17 22 | -11/Scrapyard | Discovered new exit (range 15) 100 | -11/Scrapyard | Entered Materials 310 | -10/Materials | Build established: Mutant 625 | -10/Materials | Discovered new exit (range 6) 835 | -10/Materials | Discovered new exit (range 12) 1004 | -10/Materials | Identified exit to Materials 1126 | -10/Materials | Discovered new exit (range 7) 1232 | -10/Materials | Entered another Materials area 1232 | -9/Materials | Evolved 2 slots: Propulsion x2 1714 | -9/Materials | Build established: Scavenger-Mutant 1987 | -9/Materials | Lost 3 parts (3n) 2244 | -9/Materials | Build established: Mutant 2279 | -9/Materials | Core integrity fell below 50% 2606 | -9/Materials | Discovered new exit (range 9) 2876 | -9/Materials | Discovered new exit (range 15) 2901 | -9/Materials | Entered Mines 2951 | -9/Mines | Deemed a non-threat by the Exiles lab entrance 2952 | -9/Mines | Discovered new exit (range 5) 2960 | -9/Mines | Entered Exiles 3002 | -9/Exiles | Met 8R-AWN 3028 | -9/Exiles | Met EX-HEX 3078 | -9/Exiles | Met EX-BIN 3107 | -9/Exiles | Aligned with FarCom system 3108 | -9/Exiles | Given EX-Vault access code 3161 | -9/Exiles | Opened EX-Vault 3172 | -9/Exiles | Found Field Lobotomy Kit 3180 | -9/Exiles | Found Longsword +1 3222 | -9/Exiles | Warned to stay clear of 0b10 Research branches 3330 | -9/Exiles | Attacked by the Exiles 3342 | -9/Exiles | Assimilated as-63180 with FLK Orb 3349 | -9/Exiles | Core integrity fell below 20% 3359 | -9/Exiles | Destroyed by 8R-AWN with 8R-AWN's Boregun Last Messages --------------- HV Slug penetrates Wall. Penetrated by HV Slug. HV Slug penetrates Wall. Destroyed Asb. Hover Unit. Destroyed Asb. F-torch. as-37149 destroyed. Penetrated by HV Slug. HV Slug penetrates Wall. Penetrated by HV Slug. Critical hit (Destroy). Carbon-fiber Leg destroyed. HV Slug penetrates Wall. Acquired 5 matter. Penetrated by HV Slug. HV Slug penetrates Wall. Penetrated by HV Slug. Critical hit (Destroy). Aluminum Leg destroyed. HV Slug penetrates Wall. Penetrated by HV Slug. Map ----- +----------------------------------------------------+ | """#?????????????????????????????????????????????? | | """#?????????????????????????????????????????????? | | """#?????????????????????????????????????????????? | | """##????????????????????????????????????????????? | | """""????????????????????????????????????????????? | | """##????????????????????????????????????????????? | | """""????????????????????????????????????????????? | | # ????????????????????????????????????????????? | | """#?????????????????????????????????????????????? | | ####?????????????????????????????????????????????? | | ?????????????????????????????????????????????????? | | ?????????????????????????????????????????????????? | | ?????????????????????????????????????????????????? | | ##########???????????????????????????????????? ??? | | """""""""##??????????????????????????????????? ? | | " """ """"##?????????????????????????????????# # | | "" " #???????????????????????????????## # | | " """#???????????????????????????????# | | " "#???????????#####???????????????# | | " "##?????????##" #??????????????## | | ""###???????#" #?????????????## #? | | """#??????##" ##????????????# #? | | "#????### ###????????### #?? | | ##???# aa ########## #?? | | ##?## aa g #""""## #??? | | ### a@ * ##?? | | #; * #?? | | % ##;# ##? | | ""##;"" ""#### ## | | #"""######;###??#### * | | ######??????#???????##### | | ##???????????????????????### | | " ##??????????????????????????### | | """ ""#?????????????????????????????### | | ""#" "##??????????????????????????????#" | | """##"""""""##???????????????????????????????#### | | """#?#########???????????????????????????????????# | | ##???????????????????????????????????????????????# | | ?????????????????????????????????????????????????? | | ?????????????????????????????????????????????????? | | ?????????????????????????????????????????????????? | | ?????????????????????????????????????????????????? | | ?????????????????????????????????????????????????? | | ?????????????????????????????????????????????????? | | ?????????????????????????????????????????????????? | | ?????????????????????????????????????????????????? | | ?????????????????????????????????????????????????? | | ?????????????????????????????????????????????????? | | ?????????????????????????????????????????????????? | | ?????????????????????????????????????????????????? | +----------------------------------------------------+ Best States ------------- Heat Dissipation 42 Energy Generation 14 Energy Capacity 265 Matter Stores 300 Matter Capacity 300 Sight Range 16 Terrain Scan Density 10 Core Shielding 20 Evasion (%) 55 Recoil Reduction 2 Item Schematics ----------------- None Robot Schematics ------------------ None Fabricated ------------ Nothing Repaired ---------- Nothing Studied --------- None Alien Tech Used ----------------- None Achievements -------------- None Challenges ------------ None Game ------ Seed IntegrityPulsarBuckler Manual? 0 Play Time 00:36:08 Cumulative 33.9 hours Start 2026.03.27 @ 12:02:32 End 2026.03.27 @ 12:40:10 Sessions 1 Manual Loads 0 Difficulty Rogue Special Mode None Game No. 90 Rogue 88 Adventurer 2 Explorer 0 Win Type - Total 0 Types 0/0/0/0/0/0/0/0/0/0 Lore% 7 Gallery% 19 Achievement% 17 Wizard Run 0 Options --------- Layout 1 ASCII 0 Keyboard 0 Movement Numpad Keybinds 0 Fullscreen 2 Font 32/SmallcapsGlow Map View 50x35 Zoom Use 0% Tactical HUD 0 Map Filters NONE Filters NONE Steam 1 RUN: 8217284b-dd4f-4a37-b75d-7e8c70152a53